bitfinex/quotes_BTCUSD_20220731
["timestamp","ask_amount","ask_price","bid_price","bid_amount"]
[1659281092885,0.00149359,23747.0,23746.0,0.62614655]
[1659281093134,0.16410359,23747.0,23746.0,0.58826312]
[1659281093359,0.16410359,23747.0,23746.0,0.50926312]
[1659281093587,0.16410359,23747.0,23746.0,0.00200579]
[1659281094070,0.16410359,23747.0,23746.0,0.08000579]
[1659281094290,0.30043559,23747.0,23746.0,0.08000579]
[1659281095136,0.30043559,23747.0,23746.0,0.00200579]
[1659281096122,0.37743559,23747.0,23746.0,0.00200579]
[1659281096808,0.78469292,23747.0,23746.0,0.00200579]
[1659281097245,0.70769292,23747.0,23746.0,0.00200579]
[1659281097913,0.78469292,23747.0,23746.0,0.00200579]
[1659281099296,0.66319292,23747.0,23746.0,0.00200579]
[1659281099784,0.70769292,23747.0,23746.0,0.00200579]
[1659281099998,0.78469292,23747.0,23746.0,0.00200579]
[1659281100212,0.74019292,23747.0,23746.0,0.00200579]
[1659281101311,0.66319292,23747.0,23746.0,0.00200579]
[1659281101764,0.13782559,23747.0,23746.0,0.04650579]
[1659281101992,0.07849359,23747.0,23746.0,0.04650579]
[1659281102432,0.07849359,23747.0,23746.0,0.05914927]
[1659281102649,0.07849359,23747.0,23746.0,0.04650579]
[1659281103357,0.00149359,23747.0,23746.0,0.04650579]
[1659281103844,0.00149359,23747.0,23746.0,0.12650579]
[1659281104772,0.00149359,23747.0,23746.0,0.08200579]
[1659281105223,0.16410359,23747.0,23746.0,0.00200579]
[1659281105900,0.19210359,23747.0,23746.0,0.07900579]
[1659281106337,0.49614559,23747.0,23746.0,0.07900579]
[1659281106577,0.90340292,23747.0,23746.0,0.07900579]
[1659281106832,0.90348693,23747.0,23746.0,0.07900579]
[1659281107343,0.90348693,23747.0,23746.0,0.00200579]
[1659281107344,0.87548693,23747.0,23746.0,0.00200579]
[1659281108020,0.92048693,23747.0,23746.0,0.00200579]
[1659281108689,0.92040292,23747.0,23746.0,0.00200579]
[1659281109133,0.87548693,23747.0,23746.0,0.00200579]
[1659281109342,0.87540292,23747.0,23746.0,0.00200579]
[1659281110016,0.93040292,23747.0,23746.0,0.00200579]
[1659281111188,0.87540292,23747.0,23746.0,0.00200579]
[1659281111904,0.93040292,23747.0,23746.0,0.00200579]
[1659281113769,0.87540292,23747.0,23746.0,0.00200579]
[1659281114017,0.93040292,23747.0,23746.0,0.00200579]
[1659281114947,1.62680292,23747.0,23740.0,0.105263]
[1659281115220,0.05,23741.0,23737.0,0.22450979]
[1659281115443,0.05,23738.0,23737.0,0.0021]
[1659281115698,0.186332,23738.0,23737.0,0.0021]
[1659281115932,0.59358933,23738.0,23737.0,0.0021]
[1659281116159,0.21269401,23737.0,23736.0,0.001]
[1659281116382,0.4935,23735.0,23734.0,6.011e-05]
[1659281116597,1.33708933,23735.0,23734.0,6.011e-05]
[1659281116830,1.03708933,23735.0,23734.0,6.011e-05]
[1659281117982,1.05308933,23735.0,23734.0,6.011e-05]
[1659281118430,0.60958933,23735.0,23734.0,6.011e-05]
[1659281118919,0.152332,23735.0,23734.0,6.011e-05]
[1659281119215,0.136332,23735.0,23734.0,6.011e-05]
[1659281119469,0.304042,23738.0,23734.0,6.011e-05]
[1659281119684,0.54358933,23737.0,23734.0,6.011e-05]
[1659281119910,0.085,23735.0,23734.0,6.011e-05]
[1659281120145,0.221332,23735.0,23734.0,6.011e-05]
[1659281121246,0.186332,23735.0,23734.0,6.011e-05]
[1659281121935,0.220332,23735.0,23734.0,6.011e-05]
[1659281122409,0.034,23735.0,23734.0,0.0499761]
[1659281122892,0.034,23735.0,23734.0,0.0944761]
[1659281123113,0.034,23735.0,23734.0,0.0499761]
[1659281123371,0.40872091,23736.0,23734.0,0.0499761]
[1659281123848,0.40872091,23736.0,23734.0,0.1289761]
[1659281124107,0.304042,23735.0,23734.0,0.07906011]
[1659281125266,0.304042,23735.0,23734.0,6.011e-05]
[1659281126013,0.304042,23735.0,23734.0,0.07806011]
[1659281126249,0.71129933,23735.0,23734.0,0.07806011]
[1659281126998,1.15479933,23735.0,23734.0,0.07806011]
[1659281127194,1.15479933,23735.0,23734.0,6.011e-05]
[1659281127855,1.20979933,23735.0,23734.0,6.011e-05]
[1659281128092,1.77679933,23735.0,23734.0,6.011e-05]
[1659281129278,1.72179933,23735.0,23734.0,6.011e-05]
[1659281129977,1.76879933,23735.0,23734.0,6.011e-05]
[1659281130193,1.32529933,23735.0,23734.0,6.011e-05]
[1659281130696,0.918042,23735.0,23734.0,6.011e-05]
[1659281130926,1.32529933,23735.0,23734.0,6.011e-05]
[1659281131383,1.27829933,23735.0,23734.0,6.011e-05]
[1659281132056,1.72179933,23735.0,23734.0,0.07706011]
[1659281133249,1.72179933,23735.0,23734.0,6.011e-05]
[1659281133512,8.401e-05,23734.0,23729.0,0.001]
[1659281133744,0.4435,23730.0,23729.0,0.001]
[1659281133983,2.41119533,23730.0,23729.0,0.001]
[1659281135139,2.46119533,23730.0,23729.0,0.001]
[1659281135601,2.41119533,23730.0,23729.0,0.001]
[1659281136086,2.49019533,23730.0,23729.0,0.001]
[1659281136306,2.49165891,23730.0,23729.0,0.001]
[1659281136768,2.59165891,23730.0,23729.0,0.001]
[1659281137004,2.89165891,23730.0,23729.0,0.001]
[1659281137225,2.81265891,23730.0,23729.0,0.001]
[1659281137710,2.76265891,23730.0,23729.0,0.001]
[1659281137939,2.89165891,23730.0,23729.0,0.001]
[1659281138919,3.14455891,23730.0,23729.0,0.001]
[1659281139141,3.06555891,23730.0,23729.0,0.001]
[1659281139387,2.36265891,23730.0,23729.0,0.001]
[1659281139616,1.30846291,23730.0,23729.0,0.00088625]
[1659281139842,0.71276291,23730.0,23729.0,0.03555941]
[1659281140085,0.48772091,23730.0,23729.0,0.03555941]
[1659281140572,0.48772091,23730.0,23729.0,0.00088625]
[1659281141278,0.00146358,23730.0,23729.0,0.00955453]
[1659281141508,0.00146358,23730.0,23729.0,0.00088625]
[1659281141977,0.07646358,23730.0,23729.0,0.0854754]
[1659281142246,0.075,23730.0,23729.0,0.0854754]
[1659281142733,0.075,23730.0,23729.0,0.05080224]
[1659281143190,1.0264,23734.0,23729.0,0.05080224]
[1659281143402,0.71129933,23733.0,23729.0,0.05080224]
[1659281143631,0.54358933,23732.0,23729.0,0.05080224]
[1659281143874,0.71129933,23731.0,23729.0,0.05518356]
[1659281144120,0.71129933,23731.0,23729.0,0.05080224]
[1659281144121,0.536332,23730.0,23729.0,0.05080224]
[1659281144784,0.53779558,23730.0,23729.0,0.05080224]
[1659281145525,0.53779558,23730.0,23729.0,0.00088625]
[1659281145963,1.02005291,23730.0,23729.0,0.00088625]
[1659281147307,0.94505291,23730.0,23729.0,0.00088625]
[1659281148011,0.05,23728.0,23723.0,0.09904321]
[1659281148244,0.45725733,23728.0,23723.0,0.09904321]
[1659281149408,0.45725733,23728.0,23723.0,0.06736321]
[1659281149641,0.45866462,23728.0,23723.0,0.07011132]
[1659281149912,0.53466462,23728.0,23723.0,0.07011132]
[1659281150490,0.53466462,23728.0,23723.0,0.02019533]
[1659281151117,0.45866462,23728.0,23723.0,0.02019533]
[1659281151584,0.45866462,23728.0,23727.0,0.04991599]
[1659281151585,0.00140729,23728.0,23727.0,0.04991599]
[1659281151833,0.07740729,23728.0,23727.0,0.09325743]
[1659281152396,0.07740729,23728.0,23727.0,0.04334144]
[1659281152606,0.07740729,23728.0,23726.0,0.04991599]
[1659281152836,0.07740729,23728.0,23726.0,0.08458915]
[1659281153707,0.00140729,23728.0,23727.0,0.1]
[1659281153915,0.07940729,23728.0,23726.0,0.08458915]
[1659281154129,0.07940729,23728.0,23727.0,0.1]
[1659281154464,0.07940729,23728.0,23726.0,0.04991599]
[1659281154683,0.07940729,23728.0,23726.0,0.08458915]
[1659281154907,0.07940729,23728.0,23727.0,0.1]
[1659281155117,0.07940729,23728.0,23727.0,0.00509043]
[1659281155328,0.00140729,23728.0,23727.0,0.00509043]
[1659281156010,0.00140729,23728.0,23727.0,0.04109043]
[1659281156926,0.0009,23730.0,23727.0,0.04109043]
[1659281157152,0.304942,23730.0,23727.0,0.00509043]
[1659281157368,0.0009,23730.0,23727.0,0.00509043]
[1659281157835,0.0009,23730.0,23727.0,0.06009043]
[1659281158086,0.304942,23730.0,23727.0,0.06009043]
[1659281158543,0.0009,23730.0,23727.0,0.06009043]
[1659281158773,0.0009,23730.0,23727.0,0.055]
[1659281159016,0.53725517,23733.0,23727.0,0.05827236]
[1659281159245,0.71129933,23732.0,23727.0,0.00327236]
[1659281159468,0.136332,23731.0,23727.0,0.00327236]
[1659281159721,0.9445125,23733.0,23727.0,0.00327236]
[1659281159948,0.369042,23732.0,23727.0,0.01227236]
[1659281160191,0.065,23732.0,23727.0,0.11759336]
[1659281160414,0.00143648,23730.0,23728.0,0.1]
[1659281161055,0.00143648,23730.0,23728.0,0.13467316]
[1659281161538,0.00143648,23730.0,23729.0,0.1]
[1659281161773,0.00143648,23730.0,23728.0,0.03467316]
[1659281161993,0.00143648,23730.0,23728.0,0.062]
[1659281162226,0.00143648,23730.0,23729.0,0.1]
[1659281162668,0.00143648,23730.0,23728.0,0.09667316]
[1659281162901,0.00143648,23730.0,23729.0,0.1]
[1659281163138,0.00143648,23730.0,23728.0,0.09667316]
[1659281163366,0.00143648,23730.0,23729.0,0.75395799]
[1659281163604,0.00143648,23730.0,23729.0,1.18195799]
[1659281163834,0.00143648,23730.0,23729.0,1.62088532]
[1659281164123,0.00143648,23730.0,23729.0,1.02088532]
[1659281164283,0.00143648,23730.0,23729.0,1.07088532]
[1659281164526,0.00143648,23730.0,23729.0,1.03921532]
[1659281164755,0.9245,23738.0,23734.0,0.04991599]
[1659281164980,0.71129933,23737.0,23735.0,0.03656329]
[1659281165210,0.54358933,23736.0,23735.0,0.03656329]
[1659281165689,0.40725733,23736.0,23734.0,0.04991599]
[1659281165923,0.079,23736.0,23735.0,0.58504812]
[1659281166150,0.079,23736.0,23735.0,0.91972128]
[1659281166360,0.079,23736.0,23735.0,1.21972128]
[1659281166593,0.079,23736.0,23735.0,0.91972128]
[1659281166835,0.079,23736.0,23735.0,1.65863861]
[1659281167299,0.00138123,23739.0,23738.0,0.04991599]
[1659281167535,0.00138123,23739.0,23738.0,0.49184648]
[1659281167782,0.00138123,23739.0,23738.0,0.79588848]
[1659281168087,0.00138123,23739.0,23738.0,0.84121532]
[1659281168543,0.00138123,23739.0,23738.0,0.87588848]
[1659281168772,0.30007528,23746.0,23738.0,0.57939846]
[1659281169013,0.71129933,23745.0,23738.0,0.57939846]
[1659281169243,0.136332,23744.0,23738.0,0.57939846]
[1659281169477,0.98455733,23745.0,23738.0,0.57939846]
[1659281169716,0.304042,23744.0,23738.0,0.49939846]
[1659281169944,0.136332,23743.0,23738.0,0.04991599]
[1659281170177,0.71129933,23742.0,23735.0,0.14991599]
[1659281170401,0.71129933,23742.0,23735.0,0.1]
[1659281170402,0.54358933,23741.0,23735.0,0.1]
[1659281170657,0.05,23742.0,23733.0,0.04991599]
[1659281170658,0.71129933,23740.0,23733.0,0.04991599]
[1659281170881,0.40725733,23739.0,23733.0,0.04991599]
[1659281172039,0.40725733,23739.0,23733.0,0.12791599]
[1659281173233,0.40725733,23739.0,23733.0,0.04991599]
[1659281173890,0.48625733,23739.0,23733.0,0.04991599]
[1659281174122,0.40725733,23738.0,23733.0,0.04991599]
[1659281175787,0.40725733,23740.0,23734.0,0.3]
[1659281176014,0.079,23738.0,23734.0,0.510569]
[1659281176238,0.079,23738.0,23735.0,0.33894329]
[1659281176471,0.079,23738.0,23737.0,0.1]
[1659281176969,0.079,23738.0,23737.0,0.404042]
[1659281177203,0.00139446,23738.0,23737.0,0.404042]
[1659281177430,0.00139446,23738.0,23737.0,0.704042]
[1659281177655,0.00139446,23738.0,23737.0,0.404042]
[1659281177879,0.00139446,23738.0,23737.0,0.783042]
[1659281178105,0.00139446,23738.0,23737.0,0.53295799]
[1659281178332,0.00139446,23738.0,23737.0,0.22891599]
[1659281178783,0.55108164,23744.0,23737.0,0.26381726]
[1659281179020,0.71129933,23743.0,23737.0,0.26381726]
[1659281179233,0.00139446,23738.0,23737.0,0.18481726]
[1659281179975,0.07039446,23738.0,23737.0,0.19081726]
[1659281181363,0.00139446,23738.0,23737.0,0.18481726]
[1659281182082,0.00139446,23738.0,23737.0,0.22181726]
[1659281182545,0.40725733,23742.0,23737.0,0.32709926]
[1659281182791,0.304042,23741.0,23737.0,0.32709926]
[1659281183017,0.40725733,23742.0,23737.0,0.27718327]
[1659281183257,0.304042,23741.0,23737.0,0.24018327]
[1659281183493,0.40725733,23742.0,23737.0,0.24018327]
[1659281183714,0.304042,23741.0,23737.0,0.24018327]
[1659281183950,0.079,23741.0,23737.0,0.24018327]
[1659281184396,0.304042,23740.0,23737.0,0.24018327]
[1659281184632,0.079,23741.0,23737.0,0.24018327]
[1659281184877,0.304042,23740.0,23737.0,0.24018327]
[1659281185101,0.079,23741.0,23737.0,0.24018327]
[1659281186240,0.00145163,23742.0,23737.0,0.24018327]
[1659281186698,0.00138113,23742.0,23739.0,0.04991599]
[1659281186929,0.383042,23741.0,23739.0,0.04991599]
[1659281187878,0.158,23741.0,23739.0,0.04991599]
[1659281188146,0.079,23741.0,23739.0,0.04991599]
[1659281188390,0.383042,23741.0,23739.0,0.04991599]
[1659281189084,0.079,23741.0,23739.0,0.04991599]
[1659281189315,0.00138113,23742.0,23740.0,0.03489041]
[1659281189535,0.304042,23741.0,23740.0,0.03489041]
[1659281189834,0.00145016,23745.0,23740.0,0.03489041]
[1659281190062,0.40870749,23745.0,23742.0,0.04991599]
[1659281190292,0.40870749,23745.0,23743.0,0.03489038]
[1659281190530,0.304042,23744.0,23742.0,0.04991599]
[1659281190759,0.304042,23744.0,23738.0,0.04991599]
[1659281190988,0.304042,23744.0,23738.0,0.45717332]
[1659281191239,0.136332,23743.0,23738.0,0.45717332]
[1659281191455,0.40870749,23745.0,23738.0,0.45717332]
[1659281191688,0.304042,23744.0,23740.0,0.04991599]
[1659281191945,0.215332,23743.0,23740.0,0.04991599]
[1659281192168,0.079,23743.0,23740.0,0.04991599]
[1659281192391,0.215332,23743.0,23740.0,0.04991599]
[1659281192615,0.079,23743.0,23740.0,0.08458915]
[1659281192856,0.215332,23743.0,23740.0,0.08458915]
[1659281193090,0.304042,23742.0,23741.0,0.05]
[1659281193318,0.136332,23744.0,23740.0,0.04991599]
[1659281193578,0.304042,23743.0,23740.0,0.04991599]
[1659281193818,0.136332,23742.0,23740.0,0.04991599]
[1659281194279,0.30549216,23743.0,23740.0,0.04991599]
[1659281194994,0.71274949,23743.0,23740.0,0.04991599]
[1659281195224,0.136332,23742.0,23740.0,0.04991599]
[1659281195463,0.304042,23741.0,23740.0,0.04991599]
[1659281195933,0.513332,23742.0,23740.0,0.026]
[1659281196222,1.31129933,23741.0,23740.0,0.02591324]
[1659281196448,1.94419933,23741.0,23740.0,0.02591324]
[1659281196685,2.29419933,23741.0,23740.0,0.02591324]
[1659281196926,2.24419933,23741.0,23740.0,0.02591324]
[1659281197150,2.29419933,23741.0,23740.0,0.02591324]
[1659281197392,2.24419933,23741.0,23740.0,0.02591324]
[1659281197851,2.24419933,23741.0,23732.0,0.04991599]
[1659281197852,2.29559149,23741.0,23732.0,0.04991599]
[1659281198081,1.60529216,23741.0,23740.0,0.074]
[1659281198311,1.96659149,23741.0,23740.0,0.074]
[1659281198537,2.26659149,23741.0,23740.0,0.074]
[1659281198792,2.31659149,23741.0,23740.0,0.074]
[1659281199245,2.29559149,23741.0,23732.0,0.3498189]
[1659281199485,0.54358933,23740.0,23732.0,0.04991599]
[1659281199682,0.71129933,23739.0,23732.0,0.04991599]
[1659281199906,0.40725733,23738.0,23732.0,0.04991599]
[1659281201558,0.40864949,23738.0,23732.0,0.04991599]
[1659281201774,0.40725733,23737.0,23731.0,0.3]
[1659281201993,0.05,23736.0,23729.0,0.0317484]
[1659281202218,0.71129933,23735.0,23726.0,0.34991599]
[1659281202439,0.40725733,23733.0,23724.0,0.3]
[1659281202723,0.3,23732.0,23723.0,0.40334722]
[1659281202944,0.40725733,23731.0,23723.0,0.40334722]
[1659281203376,0.5628,23735.0,23732.0,0.04991599]
[1659281203597,0.304042,23734.0,23733.0,0.05]
[1659281203823,0.304042,23734.0,23732.0,0.37504346]
[1659281204053,0.136332,23733.0,23732.0,0.3403703]
[1659281204262,0.40725733,23735.0,23732.0,0.04991599]
[1659281204468,0.304042,23734.0,23732.0,0.04991599]
[1659281204702,0.40725733,23735.0,23732.0,0.08458915]
[1659281204913,0.304042,23734.0,23732.0,0.08458915]
[1659281205166,0.40725733,23735.0,23732.0,0.04991599]
[1659281205355,0.304042,23734.0,23732.0,0.04991599]
[1659281205564,0.40725733,23735.0,23732.0,0.04991599]
[1659281205785,0.30549216,23734.0,23732.0,0.04991599]
[1659281205993,0.00145016,23734.0,23732.0,0.04991599]
[1659281206436,0.00145016,23734.0,23732.0,0.08458915]
[1659281207960,0.03545016,23734.0,23733.0,0.05]
[1659281208172,0.03545016,23734.0,23730.0,0.1053]
[1659281208621,0.03545016,23734.0,23731.0,0.03475659]
[1659281209104,0.00145016,23734.0,23730.0,0.1053]
[1659281209737,0.40725733,23735.0,23731.0,0.03475659]
[1659281209953,0.304042,23734.0,23731.0,0.03475659]
[1659281210175,0.40725733,23735.0,23731.0,0.03475659]
[1659281211029,0.40725733,23735.0,23733.0,0.04991599]
[1659281211268,0.304042,23734.0,23733.0,0.04991599]
[1659281211837,0.40725733,23735.0,23733.0,0.04991599]
[1659281212052,0.304042,23734.0,23733.0,0.04991599]
[1659281212250,0.40870749,23736.0,23733.0,0.04991599]
[1659281212807,0.00145016,23736.0,23735.0,0.04991599]
[1659281213030,0.00145016,23736.0,23735.0,0.48315799]
[1659281213239,0.00145016,23736.0,23735.0,0.51791457]
[1659281213876,0.00145016,23736.0,23735.0,0.58691457]
[1659281214084,0.8419,23742.0,23735.0,0.58691457]
[1659281214358,0.71129933,23741.0,23735.0,0.28287257]
[1659281214579,0.40725733,23741.0,23735.0,0.15367257]
[1659281215280,0.304042,23740.0,23736.0,0.04991599]
[1659281215470,0.40725733,23741.0,23736.0,0.04991599]
[1659281215901,0.351042,23740.0,23736.0,0.05291599]
[1659281216138,0.047,23740.0,23736.0,0.05291599]
[1659281216595,0.047,23740.0,23736.0,0.15819899]
[1659281217512,0.304042,23739.0,23736.0,0.15819899]
[1659281217737,0.047,23740.0,23736.0,0.15819899]
[1659281217968,0.351042,23740.0,23736.0,0.15819899]
[1659281218225,0.136332,23739.0,23736.0,0.15819899]
[1659281218930,0.04833861,23740.0,23736.0,0.15819899]
[1659281219154,0.04833861,23740.0,23736.0,0.15519899]
[1659281219435,0.00133861,23740.0,23736.0,0.15519899]
[1659281219882,0.07433861,23740.0,23736.0,0.16819899]
[1659281221229,0.07433861,23740.0,23736.0,0.37874599]
[1659281221839,0.00133861,23740.0,23736.0,0.36574599]
[1659281221841,0.07433861,23740.0,23736.0,0.37874599]
[1659281222458,0.07433861,23740.0,23736.0,0.06291599]
[1659281223192,0.00133861,23740.0,23736.0,0.04991599]
[1659281223824,0.00133861,23740.0,23736.0,0.06291599]
[1659281224034,0.073,23740.0,23736.0,0.06291599]
[1659281224848,0.073,23740.0,23736.0,0.118277]
[1659281225302,0.3,23742.0,23736.0,0.105277]
[1659281225501,0.304042,23741.0,23736.0,0.105277]
[1659281225677,0.136332,23740.0,23736.0,0.105277]
[1659281225863,0.99683933,23742.0,23736.0,0.105277]
[1659281226133,0.00133861,23740.0,23736.0,0.105277]
[1659281226815,0.210618,23739.0,23729.0,0.83333614]
[1659281227009,9.684e-05,23736.0,23730.0,0.3]
[1659281227442,0.40725733,23735.0,23729.0,0.63940418]
[1659281227603,0.40725733,23735.0,23729.0,0.03140418]
[1659281227807,0.40725733,23735.0,23730.0,0.079]
[1659281229060,0.40725733,23735.0,23731.0,0.304042]
[1659281229273,0.40725733,23735.0,23732.0,0.03475263]
[1659281229520,0.40725733,23735.0,23731.0,0.29045187]
[1659281229743,0.40725733,23735.0,23731.0,0.34045187]
[1659281229958,0.40859594,23735.0,23731.0,0.34045187]
[1659281230173,0.40859594,23735.0,23732.0,0.03634204]
[1659281230420,0.40859594,23735.0,23731.0,0.05]
[1659281231088,0.40859594,23735.0,23729.0,0.405307]
[1659281231301,0.40859594,23735.0,23729.0,0.105307]
[1659281231948,0.40852308,23735.0,23730.0,0.04991599]
[1659281233900,0.40852308,23735.0,23730.0,0.10191599]
[1659281235196,0.61790133,23734.0,23729.0,0.10749938]
[1659281235437,0.40725733,23733.0,23729.0,0.10749938]
[1659281235886,0.40725733,23733.0,23729.0,0.17449938]
[1659281236101,0.40725733,23733.0,23729.0,0.06918538]
[1659281237007,0.40725733,23733.0,23730.0,0.00028044]
[1659281237925,0.304042,23732.0,23730.0,0.07528044]
[1659281238159,0.40725733,23733.0,23730.0,0.07528044]
[1659281238376,0.40725733,23733.0,23730.0,0.075]
[1659281238842,0.304042,23732.0,23730.0,0.10967316]
[1659281239080,0.40864803,23734.0,23731.0,0.04991599]
[1659281239524,0.0013907,23734.0,23731.0,0.04991599]
[1659281240005,0.0013907,23734.0,23731.0,0.11691599]
[1659281240249,9.684e-05,23736.0,23731.0,0.11909353]
[1659281240474,0.40735417,23736.0,23731.0,0.11909353]
[1659281240730,0.304042,23735.0,23731.0,0.11909353]
[1659281240946,0.40735417,23736.0,23731.0,0.11909353]
[1659281241655,0.304042,23735.0,23731.0,0.11909353]
[1659281241869,0.40735417,23736.0,23731.0,0.13109353]
[1659281243282,0.40735417,23736.0,23731.0,0.05209353]
[1659281243974,0.48635417,23736.0,23731.0,0.05209353]
[1659281244435,0.304042,23735.0,23731.0,0.15740353]
[1659281244676,0.48635417,23736.0,23731.0,0.15740353]
[1659281245100,0.304042,23735.0,23731.0,0.15740353]
[1659281245330,0.69697417,23736.0,23731.0,0.15740353]
[1659281245568,0.304042,23735.0,23731.0,0.15740353]
[1659281245833,0.61936487,23736.0,23731.0,0.15740353]
[1659281246047,0.077,23735.0,23731.0,0.18240353]
[1659281246619,0.077,23735.0,23734.0,0.04991599]
[1659281247209,0.304042,23735.0,23734.0,0.04991599]
[1659281247634,0.00148754,23736.0,23734.0,0.04991599]
[1659281247846,0.00148754,23736.0,23734.0,0.12991599]
[1659281248060,0.304042,23735.0,23734.0,0.12991599]
[1659281249348,0.304042,23735.0,23734.0,0.04991599]
[1659281249785,0.304042,23735.0,23734.0,0.12991599]
[1659281250727,0.00148754,23736.0,23734.0,0.12991599]
[1659281250943,0.304042,23735.0,23734.0,0.12991599]
[1659281251161,0.00148754,23736.0,23734.0,0.12991599]
[1659281251162,0.00148754,23736.0,23734.0,0.04991599]
[1659281251375,0.304042,23735.0,23734.0,0.04991599]
[1659281251802,0.304042,23735.0,23734.0,0.12891599]
[1659281253111,0.304042,23735.0,23734.0,0.04991599]
[1659281253778,0.304042,23735.0,23734.0,0.12991599]
[1659281254181,0.304042,23735.0,23734.0,0.08]
[1659281255430,0.304042,23735.0,23733.0,0.03724331]
[1659281255663,0.63339454,23736.0,23733.0,0.03724331]
[1659281255903,0.63339454,23736.0,23734.0,0.08]
[1659281256115,0.304042,23735.0,23734.0,0.08]
[1659281256594,0.63339454,23736.0,23734.0,0.08]
[1659281256595,0.21211954,23736.0,23734.0,0.08]
[1659281257023,0.21211954,23736.0,23735.0,0.05]
[1659281257255,0.51616154,23736.0,23733.0,0.03724331]
[1659281257481,0.21211954,23736.0,23733.0,0.03724331]
[1659281257961,0.21211954,23736.0,23733.0,0.11724331]
[1659281258426,0.304042,23735.0,23733.0,0.11724331]
[1659281258662,0.21211954,23736.0,23733.0,0.11724331]
[1659281258896,0.21211954,23736.0,23733.0,0.08]
[1659281259345,0.21211954,23736.0,23734.0,0.0365737]
[1659281259567,0.304042,23735.0,23732.0,0.15522099]
[1659281259818,0.21211954,23736.0,23732.0,0.15522099]
[1659281260040,0.21211954,23736.0,23733.0,0.08]
[1659281260343,0.00148754,23736.0,23733.0,0.1853]
[1659281260569,0.00148754,23736.0,23734.0,0.0365737]
[1659281260795,0.00148754,23736.0,23733.0,0.1853]
[1659281261271,0.00148754,23736.0,23733.0,0.1053]
[1659281261523,0.304042,23735.0,23733.0,0.1053]
[1659281261752,0.00148754,23736.0,23732.0,0.04991599]
[1659281261975,0.00148754,23736.0,23733.0,0.08]
[1659281262645,0.304042,23735.0,23733.0,0.08]
[1659281262872,0.21210954,23736.0,23733.0,0.08]
[1659281263093,0.304042,23735.0,23733.0,0.08]
[1659281263327,0.21210954,23736.0,23732.0,0.04991599]
[1659281263557,0.304042,23735.0,23732.0,0.04991599]
[1659281263775,0.21210954,23736.0,23733.0,0.05]
[1659281264036,0.304042,23735.0,23733.0,0.08]
[1659281264265,0.21210954,23736.0,23733.0,0.08]
[1659281264489,0.304042,23735.0,23733.0,0.08]
[1659281264722,0.21210954,23736.0,23733.0,0.08]
[1659281264973,0.21210954,23736.0,23734.0,0.05]
[1659281265185,0.304042,23735.0,23734.0,0.05]
[1659281265396,0.304042,23735.0,23732.0,0.15522099]
[1659281265663,0.21210954,23736.0,23732.0,0.15522099]
[1659281265886,0.00148754,23736.0,23734.0,0.08]
[1659281266108,0.304042,23735.0,23734.0,0.08]
[1659281266338,0.00148754,23736.0,23734.0,0.08]
[1659281266559,0.304042,23735.0,23734.0,0.08]
[1659281267103,0.21210554,23736.0,23732.0,0.15522099]
[1659281267542,0.21210554,23736.0,23733.0,0.03467316]
[1659281267743,0.304042,23735.0,23732.0,0.15522099]
[1659281267972,0.21210554,23736.0,23732.0,0.23522099]
[1659281268686,0.21210554,23736.0,23733.0,0.03669419]
[1659281268897,0.21210554,23736.0,23732.0,0.23522099]
[1659281269108,0.00148754,23736.0,23732.0,0.23522099]
[1659281269680,0.00148754,23736.0,23732.0,0.15522099]
[1659281269896,0.00148754,23736.0,23733.0,0.03467316]
[1659281270285,0.00148754,23736.0,23733.0,0.13997016]
[1659281270730,0.00148754,23736.0,23734.0,0.00202095]
[1659281270950,0.00148754,23736.0,23734.0,0.05193694]
[1659281271153,0.00148754,23736.0,23734.0,0.04991599]
[1659281271848,0.00148754,23736.0,23734.0,0.12891599]
[1659281272050,0.00148754,23736.0,23734.0,0.13093694]
[1659281272304,0.00148754,23736.0,23734.0,0.12891599]
[1659281273267,0.00148754,23736.0,23734.0,0.04991599]
[1659281273904,0.00148754,23736.0,23734.0,0.12891599]
[1659281274119,0.00148754,23736.0,23734.0,0.16394355]
[1659281274332,0.00148754,23736.0,23734.0,0.12891599]
[1659281275208,0.00148754,23736.0,23734.0,0.08494355]
[1659281275511,0.00148754,23736.0,23734.0,0.04991599]
[1659281275960,0.304042,23735.0,23734.0,0.12891599]
[1659281276204,0.00148754,23736.0,23734.0,0.079]
[1659281277274,0.00148754,23736.0,23732.0,0.1053]
[1659281277514,0.00148754,23736.0,23733.0,0.03467316]
[1659281278715,0.00148754,23736.0,23734.0,0.00577743]
[1659281278944,0.00148754,23736.0,23733.0,0.13997316]
[1659281279612,0.304042,23735.0,23733.0,0.1053]
[1659281279822,0.00148754,23736.0,23733.0,0.1053]
[1659281280093,0.00148754,23736.0,23733.0,0.1853]
[1659281280323,0.00148754,23736.0,23735.0,0.05]
[1659281280608,0.30552954,23736.0,23733.0,0.1853]
[1659281280807,0.136332,23735.0,23733.0,0.1853]
[1659281280943,0.00148754,23736.0,23733.0,0.1853]
[1659281281659,0.00148754,23736.0,23733.0,0.08]
[1659281281862,0.00148754,23736.0,23731.0,0.28441899]
[1659281282095,0.00148754,23736.0,23733.0,0.08]
[1659281282306,0.00148754,23736.0,23733.0,0.11467316]
[1659281283237,0.00148754,23736.0,23732.0,0.1053]
[1659281283469,0.92194133,23735.0,23727.0,0.56932199]
[1659281283709,0.70725733,23734.0,23728.0,0.1]
[1659281283996,0.54358933,23733.0,23732.0,0.073]
[1659281284237,0.84358933,23733.0,23732.0,0.073]
[1659281284487,1.14358933,23733.0,23732.0,0.073]
[1659281284714,1.0,23732.0,23722.0,0.0011]
[1659281284953,1.38869933,23731.0,23722.0,0.0011]
[1659281285197,0.54358933,23730.0,23722.0,0.0011]
[1659281285424,0.6774,23731.0,23722.0,0.0011]
[1659281285425,1.58329933,23729.0,23722.0,0.0011]
[1659281285650,0.54358933,23728.0,23722.0,0.0011]
[1659281285923,0.05,23724.0,23722.0,0.0011]
[1659281287369,0.45725733,23724.0,23722.0,0.0011]
[1659281287853,0.872,23729.0,23722.0,0.0011]
[1659281288098,0.024,23724.0,23722.0,0.0011]
[1659281288321,0.024,23724.0,23723.0,0.03467316]
[1659281288554,0.024,23724.0,23722.0,0.0011]
[1659281289237,0.40725733,23728.0,23722.0,0.0011]
[1659281289923,0.304042,23727.0,23722.0,0.0011]
[1659281290143,0.40725733,23727.0,23722.0,0.0011]
[1659281291805,0.304042,23726.0,23722.0,0.0011]
[1659281292009,0.46225733,23727.0,23722.0,0.0011]
[1659281293176,0.40725733,23727.0,23722.0,0.0011]
[1659281293804,0.40848028,23727.0,23722.0,0.0011]